Workbook

Sheet RESUMO
D1: Ministério da Integração Nacional - MI Companhia de Desenvolvimento do Vale do São Francisco e do Parnaíba - Codevasf Gerência de Gestão dos Empreendimentos de Irrigação - AI/GEI
A2: READEQUAÇÃO DOS PERÍMETROS IRRIGADOS DA CODEVASF/4ªSR PARA ADAPTAR OS SISTEMAS DE BOMBEAMENTO COM A REDUÇÃO DE VAZÃO DO RIO SÃO FRANCISCO | G2: Data Base: JULHO/2015 | H2: BDI (Serviço) | I2: =BDI_Serviços!E24 -> 0.2617
A4: PLANILHA ORÇAMENTÁRIA
A5: ITEM | B5: CÓDIGO | C5: FONTE | D5: DESCRIÇÃO | E5: UN. | F5: QUANT. | G5: Preço Unitário (R$) | I5: Preço Total (R$)
G6: Sem BDI | H6: Com BDI
A7: Grupo 01 - Propriá
A8: 1.1 | B8: 73822/002 | C8: Sinapi | D8: Limpeza do Terremo - Raspagem e limpeza mecanizada de camada vegetal. | E8: m² | F8: 25 | G8: 0.48 | H8: =ROUND(G8*(1+$I$2),2) -> 0.61 | I8: =ROUND(F8*H8,2) -> 15.25
A9: 1.2 | B9: 74209/001 | C9: Sinapi | D9: Placa de identificação de obra em chapa de aço galvanizado (4m x 3m) - incluindo fornecimento e instalação. | E9: m² | F9: 12 | G9: 249.11 | H9: =ROUND(G9*(1+$I$2),2) -> 314.3 | I9: =ROUND(F9*H9,2) -> 3771.6
A10: 1.3 | B10: - | C10: CPU | D10: Administração local. | E10: mês | F10: 2 | G10: =CPU!G54 -> 7707.92 | H10: =ROUND(G10*(1+$I$2),2) -> 9725.08 | I10: =ROUND(F10*H10,2) -> 19450.16
A11: 1.4 | B11: - | C11: CPU | D11: Mobilização | E11: und | F11: 1 | G11: =CPU!G14 -> 3720.08 | H11: =ROUND(G11*(1+$I$2),2) -> 4693.62 | I11: =ROUND(F11*H11,2) -> 4693.62
A12: 1.5 | B12: - | C12: CPU | D12: Desmobilização | E12: und | F12: 1 | G12: =CPU!G30 -> 1062.88 | H12: =ROUND(G12*(1+$I$2),2) -> 1341.04 | I12: =ROUND(F12*H12,2) -> 1341.04
A13: 2.1 | B13: - | C13: - | D13: Serviços na Estação de Bombeamento EB1 | E13: und | F13: 1 | H13: =Propriá!I23 -> 12349.94 | I13: =F13*H13 -> 12349.94
A14: 3.1 | B14: - | C14: - | D14: Fornecimentos na Estação de Bombeamento EB1 | E14: und | F14: 1 | G14: - | H14: ='Forn Propriá'!G20 -> 524699.55 | I14: =F14*H14 -> 524699.55
A15: TOTAL | I15: =SUM(I8:I14) -> 566321.16
A16: Grupo 02 - Cotinguiba-Pindoba
A17: 1.1 | B17: 73822/002 | C17: Sinapi | D17: Limpeza do Terremo - Raspagem e limpeza mecanizada de camada vegetal. | E17: m² | F17: 25 | G17: 0.48 | H17: =ROUND(G17*(1+$I$2),2) -> 0.61 | I17: =ROUND(F17*H17,2) -> 15.25
A18: 1.2 | B18: 74209/001 | C18: Sinapi | D18: Placa de identificação de obra em chapa de aço galvanizado (4m x 3m) - incluindo fornecimento e instalação. | E18: m² | F18: 12 | G18: 249.11 | H18: =ROUND(G18*(1+$I$2),2) -> 314.3 | I18: =ROUND(F18*H18,2) -> 3771.6
A19: 1.3 | B19: - | C19: CPU | D19: Administração local. | E19: mês | F19: 2 | G19: =CPU!G54 -> 7707.92 | H19: =ROUND(G19*(1+$I$2),2) -> 9725.08 | I19: =ROUND(F19*H19,2) -> 19450.16
A20: 1.4 | B20: - | C20: CPU | D20: Mobilização | E20: und | F20: 1 | G20: =CPU!G14 -> 3720.08 | H20: =ROUND(G20*(1+$I$2),2) -> 4693.62 | I20: =ROUND(F20*H20,2) -> 4693.62
A21: 1.5 | B21: - | C21: CPU | D21: Desmobilização | E21: und | F21: 1 | G21: =CPU!G30 -> 1062.88 | H21: =ROUND(G21*(1+$I$2),2) -> 1341.04 | I21: =ROUND(F21*H21,2) -> 1341.04
A22: 2.1 | B22: - | C22: - | D22: Serviços na Estação de Bombeamento EB2 | E22: und | F22: 1 | G22: - | H22: =Cotinguiba_Pindoba!I23 -> 13482 | I22: =F22*H22 -> 13482
A23: 3.1 | B23: - | C23: - | D23: Fornecimentos na Estação de Bombeamento EB2 | E23: und | F23: 1 | G23: - | H23: ='Forn Cotinguiba'!G22 -> 455137.0333 | I23: =F23*H23 -> 455137.0333
A24: TOTAL | I24: =SUM(I17:I23) -> 497890.7033
A25: Grupo 03 - Betume
A26: 1.1 | B26: 73822/002 | C26: Sinapi | D26: Limpeza do Terremo - Raspagem e limpeza mecanizada de camada vegetal. | E26: m² | F26: 30 | G26: 0.48 | H26: =ROUND(G26*(1+$I$2),2) -> 0.61 | I26: =ROUND(F26*H26,2) -> 18.3
A27: 1.2 | B27: 74209/001 | C27: Sinapi | D27: Placa de identificação de obra em chapa de aço galvanizado (4m x 3m) - incluindo fornecimento e instalação. | E27: m² | F27: 12 | G27: 249.11 | H27: =ROUND(G27*(1+$I$2),2) -> 314.3 | I27: =ROUND(F27*H27,2) -> 3771.6
A28: 1.3 | B28: - | C28: CPU | D28: Administração local. | E28: mês | F28: 3 | G28: =CPU!G54 -> 7707.92 | H28: =ROUND(G28*(1+$I$2),2) -> 9725.08 | I28: =ROUND(F28*H28,2) -> 29175.24
A29: 1.4 | B29: - | C29: CPU | D29: Mobilização | E29: und | F29: 1 | G29: =CPU!G14 -> 3720.08 | H29: =ROUND(G29*(1+$I$2),2) -> 4693.62 | I29: =ROUND(F29*H29,2) -> 4693.62
A30: 1.5 | B30: - | C30: CPU | D30: Desmobilização | E30: und | F30: 1 | G30: =CPU!G30 -> 1062.88 | H30: =ROUND(G30*(1+$I$2),2) -> 1341.04 | I30: =ROUND(F30*H30,2) -> 1341.04
A31: 2.1 | B31: - | C31: - | D31: Serviços na Estação de Bombeamento EB2, EB3, EB5, EB7 e EB8 | E31: und | F31: 1 | G31: - | H31: ='Betume EB2 e EB3'!I23+'Betume EB2 e EB3 - interligação'!I20+'Betume EB5'!I23+'Betume EB7'!I23+'Betume EB8'!I23 -> 53245.99 | I31: =F31*H31 -> 53245.99
A32: 3.1 | B32: - | C32: - | D32: Fornecimentos na Estação de Bombeamento EB2, EB3, EB5, EB7 e EB8 | E32: und | F32: 1 | G32: - | H32: ='Forn Betume EB2 e EB3'!G21+'Forn Betume EB5'!G22+'Forn Betume EB7'!G19+'Forn Betume EB8'!G19 -> 1693883.99 | I32: =F32*H32 -> 1693883.99
A33: TOTAL | I33: =SUM(I26:I32) -> 1786129.78
A34: TOTAL GERAL | I34: =I15+I24+I33 -> 2850341.643

Sheet Propriá
A1: =[4]RESUMO!$A$6 -> READEQUAÇÃO DOS PERÍMETROS IRRIGADOS DA CODEVASF/4ªSR PARA ADAPTAR OS SISTEMAS DE BOMBEAMENTO COM A REDUÇÃO DE VAZÃO DO RIO SÃO FRANCISCO -(Estações de Bombeamento EB1 - Propria.) | G1: =[4]RESUMO!$G$6 -> Data Base: JULHO/2015 | H1: Prazo da Obra:
A3: PLANILHA ORÇAMENTÁRIA DE SERVIÇOS | G3: BDI (Serviços): | I3: =BDI_Serviços!E24 -> 0.2617
A4: ITEM | B4: CÓDIGO | C4: FONTE | D4: DESCRIÇÃO | E4: UN. | F4: QUANT. | G4: Preço Unitário (R$) | I4: Preço Total (R$)
G5: Sem BDI | H5: Com BDI
A6: 1 | B6: CAPTAÇÃO | I6: =I7 -> 6455.65
A7: 1.1 | B7: CAPTAÇÃO | I7: =SUM(I8:I10) -> 6455.65
A8: 1.1.1 | C8: CPU | D8: ASSENTAMENTO DAS MOTOBOMBAS NO PONTO DE CAPTAÇÃO | E8: unid. | F8: 1 | G8: =CPU!G69 -> 2790.06 | H8: =ROUND(G8*(1+$I$3),2) -> 3520.22 | I8: =ROUND(F8*H8,2) -> 3520.22
A9: 1.1.2 | B9: 83725 | C9: Sinapi | D9: ASSENTAMENTO DE PECAS, CONEXOES, APARELHOS E ACESSORIOS DE FERRO FUNDIDO DUCTIL, JUNTA ELASTICA, MECANICA OU FLANGEADA, COM DIAMETROS DE 350 A 600 MM. | E9: Kg | F9: 1611.42 | G9: 0.81 | H9: =ROUND(G9*(1+$I$3),2) -> 1.02 | I9: =ROUND(F9*H9,2) -> 1643.65
A10: 1.1.3 | C10: CPU | D10: INSTALAÇÃO ELÉTRICA DO PAINEL E DAS MOTOBOMBAS | E10: unid. | F10: 1 | G10: =CPU!G162 -> 1023.84 | H10: =ROUND(G10*(1+$I$3),2) -> 1291.78 | I10: =ROUND(F10*H10,2) -> 1291.78
A11: 2 | B11: ADUTORA DE ÁGUA BRUTA | I11: =I12+I15+I18 -> 5894.29
A12: 2.1 | B12: LOCAÇÃO | I12: =SUM(I13:I14) -> 104.77
A13: 2.1.1 | B13: 73679 | C13: Sinapi | D13: LOCAÇÃO DE ADUTORA | E13: m | F13: 71.88 | G13: 0.59 | H13: =ROUND(G13*(1+$I$3),2) -> 0.74 | I13: =ROUND(F13*H13,2) -> 53.19
A14: 2.1.2 | B14: 73948/016 | C14: Sinapi | D14: LIMPEZA MANUAL DO TERRENO COM RASPAGEM SUPERFICIAL | E14: m² | F14: 16.12 | G14: 2.54 | H14: =ROUND(G14*(1+$I$3),2) -> 3.2 | I14: =ROUND(F14*H14,2) -> 51.58
A15: 2.2 | B15: ASSENTAMENTO DE TUBOS E CONEXÕES | I15: =SUM(I16:I17) -> 3220.59
A16: 2.2.1 | B16: 73839/009 | C16: Sinapi | D16: ASSENTAMENTO TUBO AÇO, DN 400 MM, | E16: m | F16: 70.72 | G16: 17.67 | H16: =ROUND(G16*(1+$I$3),2) -> 22.29 | I16: =ROUND(F16*H16,2) -> 1576.35
A17: 2.2.2 | B17: 83725 | C17: Sinapi | D17: ASSENTAMENTO DE PECAS, CONEXOES, APARELHOS E ACESSORIOS DE FERRO FUNDIDO DUCTIL, JUNTA ELASTICA, MECANICA OU FLANGEADA, COM DIAMETROS DE 350 A 600 MM. | E17: kg | F17: 1612 | G17: 0.81 | H17: =ROUND(G17*(1+$I$3),2) -> 1.02 | I17: =ROUND(F17*H17,2) -> 1644.24
A18: 2.3 | B18: BLOCOS DE ANCORAGEM | I18: =SUM(I19:I22) -> 2568.93
A19: 2.3.1 | B19: 73406 | C19: Sinapi | D19: CONCRETO FCK=15MPA TRAÇO 1:2,5:3, INCLUIDO PREPARO MECANICO, LANCAMENTO E ADENSAMENTO. | E19: m³ | F19: 1.56 | G19: 406.65 | H19: =ROUND(G19*(1+$I$3),2) -> 513.07 | I19: =ROUND(F19*H19,2) -> 800.39
A20: 2.3.2 | B20: 5651 | C20: Sinapi | D20: FORMA PLANA EM TÁBUA PARA CONCRETO EM FUNDAÇÕES COM REAPROVEITAMENTO DE 5 VEZES. | E20: m² | F20: 8.07 | G20: 23.48 | H20: =ROUND(G20*(1+$I$3),2) -> 29.62 | I20: =ROUND(F20*H20,2) -> 239.03
A21: 2.3.3 | B21: 74254/002 | C21: Sinapi | D21: ARMADURA DE AÇO CA 50, COM DIAMETRO DE 6,3 (1/4) A 12,5MM (1/2) INCLUINDO FORNECIMENTO, CORTE (PERCA DE 10%), DOBRA E COLOCAÇÃO | E21: kg | F21: 23.34 | G21: 7.57 | H21: 9.55 | I21: =ROUND(F21*H21,2) -> 222.9
A22: 2.3.4 | B22: 73361 | C22: Sinapi | D22: CONCRETO CICLOPICO FCK=10MPA 30% PEDRA DE MAO INCLUSIVE LANCAMENTO | E22: m³ | F22: 3.22 | G22: 321.61 | H22: 405.78 | I22: =ROUND(F22*H22,2) -> 1306.61
A23: TOTAL DE SERVIÇOS COM BDI | I23: =ROUND(I6+I11,2) -> 12349.94

Sheet Cotinguiba_Pindoba
A1: =[5]RESUMO!$A$6 -> READEQUAÇÃO DOS PERÍMETROS IRRIGADOS DA CODEVASF/4ªSR PARA ADAPTAR OS SISTEMAS DE BOMBEAMENTO COM A REDUÇÃO DE VAZÃO DO RIO SÃO FRANCISCO -(Estações de Bombeamento EB2 COTINGUIBA.) | G1: =[5]RESUMO!$G$6 -> Data Base: JULHO/2015 | H1: Prazo da Obra:
A3: PLANILHA ORÇAMENTÁRIA DE SERVIÇOS | G3: BDI (Serviços): | I3: =BDI_Serviços!E24 -> 0.2617
A4: ITEM | B4: CÓDIGO | C4: FONTE | D4: DESCRIÇÃO | E4: UN. | F4: QUANT. | G4: Preço Unitário (R$) | I4: Preço Total (R$)
G5: Sem BDI | H5: Com BDI
A6: 1 | B6: CAPTAÇÃO | I6: =I7 -> 8530.71
A7: 1.1 | B7: CAPTAÇÃO | I7: =SUM(I8:I10) -> 8530.71
A8: 1.1.1 | C8: CPU | D8: ASSENTAMENTO DAS MOTOBOMBAS NO PONTO DE CAPTAÇÃO | E8: unid. | F8: 1 | G8: =CPU!G84 -> 4650.1 | H8: =ROUND(G8*(1+$I$3),2) -> 5867.03 | I8: =ROUND(F8*H8,2) -> 5867.03
A9: 1.1.2 | B9: 83725 | C9: Sinapi | D9: ASSENTAMENTO DE PECAS, CONEXOES, APARELHOS E ACESSORIOS DE FERRO FUNDIDO DUCTIL, JUNTA ELASTICA, MECANICA OU FLANGEADA, COM DIAMETROS DE 350 A 600 MM. | E9: Kg | F9: 1345 | G9: 0.81 | H9: =ROUND(G9*(1+$I$3),2) -> 1.02 | I9: =ROUND(F9*H9,2) -> 1371.9
A10: 1.1.3 | C10: CPU | D10: INSTALAÇÃO ELÉTRICA DO PAINEL E DAS MOTOBOMBAS | E10: unid. | F10: 1 | G10: =CPU!G162 -> 1023.84 | H10: =ROUND(G10*(1+$I$3),2) -> 1291.78 | I10: =ROUND(F10*H10,2) -> 1291.78
A11: 2 | B11: ADUTORA DE ÁGUA BRUTA | I11: =I12+I15+I18 -> 4951.29
A12: 2.1 | B12: LOCAÇÃO | I12: =SUM(I13:I14) -> 87.47
A13: 2.1.1 | B13: 73679 | C13: Sinapi | D13: LOCAÇÃO DE ADUTORA | E13: m | F13: 60 | G13: 0.59 | H13: =ROUND(G13*(1+$I$3),2) -> 0.74 | I13: =ROUND(F13*H13,2) -> 44.4
A14: 2.1.2 | B14: 73948/016 | C14: Sinapi | D14: LIMPEZA MANUAL DO TERRENO COM RASPAGEM SUPERFICIAL | E14: m² | F14: 13.46 | G14: 2.54 | H14: =ROUND(G14*(1+$I$3),2) -> 3.2 | I14: =ROUND(F14*H14,2) -> 43.07
A15: 2.2 | B15: ASSENTAMENTO DE TUBOS E CONEXÕES | I15: =SUM(I16:I17) -> 2709.81
A16: 2.1.1 | B16: 73839/009 | C16: Sinapi | D16: ASSENTAMENTO TUBO AÇO, DN 400 MM, | E16: m | F16: 60 | G16: 17.67 | H16: =ROUND(G16*(1+$I$3),2) -> 22.29 | I16: =ROUND(F16*H16,2) -> 1337.4
A17: 2.1.2 | B17: 83725 | C17: Sinapi | D17: ASSENTAMENTO DE PECAS, CONEXOES, APARELHOS E ACESSORIOS DE FERRO FUNDIDO DUCTIL, JUNTA ELASTICA, MECANICA OU FLANGEADA, COM DIAMETROS DE 350 A 600 MM. | E17: kg | F17: 1345.5 | G17: 0.81 | H17: =ROUND(G17*(1+$I$3),2) -> 1.02 | I17: =ROUND(F17*H17,2) -> 1372.41
A18: 2.3 | B18: BLOCOS DE ANCORAGEM | I18: =SUM(I19:I22) -> 2154.01
A19: 2.3.1 | B19: 73406 | C19: Sinapi | D19: CONCRETO FCK=15MPA TRAÇO 1:2,5:3, INCLUIDO PREPARO MECANICO, LANCAMENTO E ADENSAMENTO. | E19: m³ | F19: 1.31 | G19: 406.65 | H19: =ROUND(G19*(1+$I$3),2) -> 513.07 | I19: =ROUND(F19*H19,2) -> 672.12
A20: 2.3.2 | B20: 5651 | C20: Sinapi | D20: FORMA PLANA EM TÁBUA PARA CONCRETO EM FUNDAÇÕES COM REAPROVEITAMENTO DE 5 VEZES. | E20: m² | F20: 6.73 | G20: 23.48 | H20: =ROUND(G20*(1+$I$3),2) -> 29.62 | I20: =ROUND(F20*H20,2) -> 199.34
A21: 2.3.3 | B21: 74254/002 | C21: Sinapi | D21: ARMADURA DE AÇO CA 50, COM DIAMETRO DE 6,3 (1/4) A 12,5MM (1/2) INCLUINDO FORNECIMENTO, CORTE (PERCA DE 10%), DOBRA E COLOCAÇÃO | E21: kg | F21: 20 | G21: 7.57 | H21: 9.55 | I21: =ROUND(F21*H21,2) -> 191
A22: 2.3.4 | B22: 73361 | C22: Sinapi | D22: CONCRETO CICLOPICO FCK=10MPA 30% PEDRA DE MAO INCLUSIVE LANCAMENTO | E22: m³ | F22: 2.69 | G22: 321.61 | H22: 405.78 | I22: =ROUND(F22*H22,2) -> 1091.55
A23: TOTAL DE SERVIÇOS COM BDI | I23: =ROUND(I6+I11,2) -> 13482

Sheet Betume EB2 e EB3
A1: =[6]RESUMO!$A$6 -> READEQUAÇÃO DOS PERÍMETROS IRRIGADOS DA CODEVASF/4ªSR PARA ADAPTAR OS SISTEMAS DE BOMBEAMENTO COM A REDUÇÃO DE VAZÃO DO RIO SÃO FRANCISCO -(Estações de Bombeamento EB2 e EB3.) | G1: =[6]RESUMO!$G$6 -> Data Base: JULHO/2015 | H1: Prazo da Obra:
A3: PLANILHA ORÇAMENTÁRIA DE SERVIÇOS | G3: BDI (Serviços): | I3: =BDI_Serviços!E24 -> 0.2617
A4: ITEM | B4: CÓDIGO | C4: FONTE | D4: DESCRIÇÃO | E4: UN. | F4: QUANT. | G4: Preço Unitário (R$) | I4: Preço Total (R$)
G5: Sem BDI | H5: Com BDI
A6: 1 | B6: CAPTAÇÃO-PARÍ | I6: =I7 -> 14266.18
A7: 1.1 | B7: CAPTAÇÃO-PARÍ | I7: =SUM(I8:I10) -> 14266.18
A8: 1.1.1 | C8: CPU | D8: ASSENTAMENTO DAS MOTOBOMBAS NO PONTO DE CAPTAÇÃO | E8: unid. | F8: 1 | G8: =CPU!G100 -> 7506.59 | H8: =ROUND(G8*(1+$I$3),2) -> 9471.06 | I8: =ROUND(F8*H8,2) -> 9471.06
A9: 1.1.2 | B9: 83725 | C9: Sinapi | D9: ASSENTAMENTO DE PECAS, CONEXOES, APARELHOS E ACESSORIOS DE FERRO FUNDIDO DUCTIL, JUNTA ELASTICA, MECANICA OU FLANGEADA, COM DIAMETROS DE 350 A 600 MM. | E9: Kg | F9: 1950 | G9: 0.81 | H9: =ROUND(G9*(1+$I$3),2) -> 1.02 | I9: =ROUND(F9*H9,2) -> 1989
A10: 1.1.3 | C10: CPU | D10: INSTALAÇÃO ELÉTRICA DO PAINEL E DAS MOTOBOMBAS | E10: unid. | F10: 1 | G10: =CPU!G181 -> 2224.08 | H10: =ROUND(G10*(1+$I$3),2) -> 2806.12 | I10: =ROUND(F10*H10,2) -> 2806.12
A11: 2 | B11: ADUTORA DE ÁGUA BRUTA | I11: =I12+I15+I18 -> 5945.94
A12: 2.1 | B12: LOCAÇÃO | I12: =SUM(I13:I14) -> 69.62
A13: 2.1.1 | B13: 73679 | C13: Sinapi | D13: LOCAÇÃO DE ADUTORA | E13: m | F13: 9.75 | G13: 0.59 | H13: =ROUND(G13*(1+$I$3),2) -> 0.74 | I13: =ROUND(F13*H13,2) -> 7.22
A14: 3.1.2 | B14: 73948/016 | C14: Sinapi | D14: LIMPEZA MANUAL DO TERRENO COM RASPAGEM SUPERFICIAL | E14: m² | F14: 19.5 | G14: 2.54 | H14: =ROUND(G14*(1+$I$3),2) -> 3.2 | I14: =ROUND(F14*H14,2) -> 62.4
A15: 2.2 | B15: ASSENTAMENTO DE TUBOS E CONEXÕES | I15: =SUM(I16:I17) -> 2657.7
A16: 2.2.1 | B16: 73839/009 | C16: Sinapi | D16: ASSENTAMENTO TUBO AÇO, DN 400 MM, | E16: m | F16: 30 | G16: 17.67 | H16: =ROUND(G16*(1+$I$3),2) -> 22.29 | I16: =ROUND(F16*H16,2) -> 668.7
A17: 2.2.2 | B17: 83725 | C17: Sinapi | D17: ASSENTAMENTO DE PECAS, CONEXOES, APARELHOS E ACESSORIOS DE FERRO FUNDIDO DUCTIL, JUNTA ELASTICA, MECANICA OU FLANGEADA, COM DIAMETROS DE 350 A 600 MM. | E17: kg | F17: 1950 | G17: 0.81 | H17: =ROUND(G17*(1+$I$3),2) -> 1.02 | I17: =ROUND(F17*H17,2) -> 1989
A18: 2.3 | B18: BLOCOS DE ANCORAGEM | I18: =SUM(I19:I22) -> 3218.62
A19: 2.3.1 | B19: 73406 | C19: Sinapi | D19: CONCRETO FCK=15MPA TRAÇO 1:2,5:3, INCLUIDO PREPARO MECANICO, LANCAMENTO E ADENSAMENTO. | E19: m³ | F19: 1.9 | G19: 406.65 | H19: =ROUND(G19*(1+$I$3),2) -> 513.07 | I19: =ROUND(F19*H19,2) -> 974.83
A20: 2.3.2 | B20: 5651 | C20: Sinapi | D20: FORMA PLANA EM TÁBUA PARA CONCRETO EM FUNDAÇÕES COM REAPROVEITAMENTO DE 5 VEZES. | E20: m² | F20: 9.75 | G20: 23.48 | H20: =ROUND(G20*(1+$I$3),2) -> 29.62 | I20: =ROUND(F20*H20,2) -> 288.8
A21: 2.3.3 | B21: 74254/002 | C21: Sinapi | D21: ARMADURA DE AÇO CA 50, COM DIAMETRO DE 6,3 (1/4) A 12,5MM (1/2) INCLUINDO FORNECIMENTO, CORTE (PERCA DE 10%), DOBRA E COLOCAÇÃO | E21: kg | F21: 39 | G21: 7.57 | H21: 9.55 | I21: =ROUND(F21*H21,2) -> 372.45
A22: 2.3.4 | B22: 73361 | C22: Sinapi | D22: CONCRETO CICLOPICO FCK=10MPA 30% PEDRA DE MAO INCLUSIVE LANCAMENTO | E22: m³ | F22: 3.9 | G22: 321.61 | H22: 405.78 | I22: =ROUND(F22*H22,2) -> 1582.54
A23: TOTAL DE SERVIÇOS COM BDI | I23: =ROUND(I6+I11,2) -> 20212.12

Sheet Betume EB2 e EB3 - interligação
A1: =[6]RESUMO!$A$6 -> READEQUAÇÃO DOS PERÍMETROS IRRIGADOS DA CODEVASF/4ªSR PARA ADAPTAR OS SISTEMAS DE BOMBEAMENTO COM A REDUÇÃO DE VAZÃO DO RIO SÃO FRANCISCO -(Estações de Bombeamento EB2 e EB3.) | G1: =[6]RESUMO!$G$6 -> Data Base: JULHO/2015 | H1: Prazo da Obra:
A3: PLANILHA ORÇAMENTÁRIA DE SERVIÇOS | G3: BDI (Serviços): | I3: =BDI_Serviços!E24 -> 0.2617
A4: ITEM | B4: CÓDIGO | C4: FONTE | D4: DESCRIÇÃO | E4: UN. | F4: QUANT. | G4: Preço Unitário (R$) | I4: Preço Total (R$)
G5: Sem BDI | H5: Com BDI
A6: 1 | B6: INTERLIGAÇÃO DOS CANAIS | I6: =I7 -> 723.18
A7: 1.1 | B7: INTERLIGAÇÃO DOS CANAIS | I7: =SUM(I8:I8) -> 723.18
A8: 1.1.2 | B8: 83725 | C8: Sinapi | D8: ASSENTAMENTO DE PECAS, CONEXOES, APARELHOS E ACESSORIOS DE FERRO FUNDIDO DUCTIL, JUNTA ELASTICA, MECANICA OU FLANGEADA, COM DIAMETROS DE 350 A 600 MM. | E8: Kg | F8: 709 | G8: 0.81 | H8: =ROUND(G8*(1+$I$3),2) -> 1.02 | I8: =ROUND(F8*H8,2) -> 723.18
A9: 2 | B9: ADUTORA DE ÁGUA BRUTA | I9: =I10+I12+I15 -> 4533.15
A10: 2.1 | B10: LOCAÇÃO | I10: =SUM(I11:I11) -> 18.37
A11: 2.1.1 | B11: 73679 | C11: Sinapi | D11: LOCAÇÃO DE ADUTORA | E11: m | F11: 24.82 | G11: 0.59 | H11: =ROUND(G11*(1+$I$3),2) -> 0.74 | I11: =ROUND(F11*H11,2) -> 18.37
A12: 2.2 | B12: ASSENTAMENTO DE TUBOS E CONEXÕES | I12: =SUM(I13:I14) -> 1614.78
A13: 2.2.1 | B13: 73839/009 | C13: Sinapi | D13: ASSENTAMENTO TUBO AÇO, DN 400 MM, | E13: m | F13: 40 | G13: 17.67 | H13: =ROUND(G13*(1+$I$3),2) -> 22.29 | I13: =ROUND(F13*H13,2) -> 891.6
A14: 2.2.3 | B14: 83725 | C14: Sinapi | D14: ASSENTAMENTO DE PECAS, CONEXOES, APARELHOS E ACESSORIOS DE FERRO FUNDIDO DUCTIL, JUNTA ELASTICA, MECANICA OU FLANGEADA, COM DIAMETROS DE 350 A 600 MM. | E14: kg | F14: 709 | G14: 0.81 | H14: =ROUND(G14*(1+$I$3),2) -> 1.02 | I14: =ROUND(F14*H14,2) -> 723.18
A15: 2.3 | B15: BLOCOS DE ANCORAGEM | I15: =SUM(I16:I19) -> 2900
A16: 2.3.1 | B16: 73406 | C16: Sinapi | D16: CONCRETO FCK=15MPA TRAÇO 1:2,5:3, INCLUIDO PREPARO MECANICO, LANCAMENTO E ADENSAMENTO. | E16: m³ | F16: 1.42 | G16: 406.65 | H16: =ROUND(G16*(1+$I$3),2) -> 513.07 | I16: =ROUND(F16*H16,2) -> 728.56
A17: 2.3.2 | B17: 5651 | C17: Sinapi | D17: FORMA PLANA EM TÁBUA PARA CONCRETO EM FUNDAÇÕES COM REAPROVEITAMENTO DE 5 VEZES. | E17: m² | F17: 7.09 | G17: 23.48 | H17: =ROUND(G17*(1+$I$3),2) -> 29.62 | I17: =ROUND(F17*H17,2) -> 210.01
A18: 2.3.3 | B18: 74254/002 | C18: Sinapi | D18: ARMADURA DE AÇO CA 50, COM DIAMETRO DE 6,3 (1/4) A 12,5MM (1/2) INCLUINDO FORNECIMENTO, CORTE (PERCA DE 10%), DOBRA E COLOCAÇÃO | E18: kg | F18: 14.18 | G18: 7.57 | H18: 9.55 | I18: =ROUND(F18*H18,2) -> 135.42
A19: 2.3.4 | B19: 73361 | C19: Sinapi | D19: CONCRETO CICLOPICO FCK=10MPA 30% PEDRA DE MAO INCLUSIVE LANCAMENTO | E19: m³ | F19: 4.5 | G19: 321.61 | H19: 405.78 | I19: =ROUND(F19*H19,2) -> 1826.01
A20: TOTAL DE SERVIÇOS COM BDI | I20: =I6+I9 -> 5256.33

Sheet Betume EB5
A1: =[7]RESUMO!$A$6 -> READEQUAÇÃO DOS PERÍMETROS IRRIGADOS DA CODEVASF/4ªSR PARA ADAPTAR OS SISTEMAS DE BOMBEAMENTO COM A REDUÇÃO DE VAZÃO DO RIO SÃO FRANCISCO -(Estações de Bombeamento EB5.) | G1: =[7]RESUMO!$G$6 -> Data Base: JULHO/2015 | H1: Prazo da Obra:
A3: PLANILHA ORÇAMENTÁRIA DE SERVIÇOS | G3: BDI (Serviços): | I3: =BDI_Serviços!E24 -> 0.2617
A4: ITEM | B4: CÓDIGO | C4: FONTE | D4: DESCRIÇÃO | E4: UN. | F4: QUANT. | G4: Preço Unitário (R$) | I4: Preço Total (R$)
G5: Sem BDI | H5: Com BDI
A6: 1 | B6: CAPTAÇÃO | I6: =I7 -> 8530.71
A7: 1.1 | B7: CAPTAÇÃO | I7: =SUM(I8:I10) -> 8530.71
A8: 1.1.1 | C8: CPU | D8: ASSENTAMENTO DAS MOTOBOMBAS NO PONTO DE CAPTAÇÃO | E8: unid. | F8: 1 | G8: =CPU!G114 -> 4650.1 | H8: =ROUND(G8*(1+$I$3),2) -> 5867.03 | I8: =ROUND(F8*H8,2) -> 5867.03
A9: 1.1.2 | B9: 83725 | C9: Sinapi | D9: ASSENTAMENTO DE PECAS, CONEXOES, APARELHOS E ACESSORIOS DE FERRO FUNDIDO DUCTIL, JUNTA ELASTICA, MECANICA OU FLANGEADA, COM DIAMETROS DE 350 A 600 MM. | E9: Kg | F9: 1345 | G9: 0.81 | H9: =ROUND(G9*(1+$I$3),2) -> 1.02 | I9: =ROUND(F9*H9,2) -> 1371.9
A10: 1.1.3 | C10: CPU | D10: INSTALAÇÃO ELÉTRICA DO PAINEL E DAS MOTOBOMBAS | E10: unid. | F10: 1 | G10: =CPU!G162 -> 1023.84 | H10: 1291.78 | I10: =ROUND(F10*H10,2) -> 1291.78
A11: 2 | B11: ADUTORA DE ÁGUA BRUTA | I11: =I12+I15+I18 -> 4951.29
A12: 2.1 | B12: LOCAÇÃO | I12: =SUM(I13:I14) -> 87.47
A13: 2.1.1 | B13: 73679 | C13: Sinapi | D13: LOCAÇÃO DE ADUTORA | E13: m | F13: 60 | G13: 0.59 | H13: =ROUND(G13*(1+$I$3),2) -> 0.74 | I13: =ROUND(F13*H13,2) -> 44.4
A14: 2.1.2 | B14: 73948/016 | C14: Sinapi | D14: LIMPEZA MANUAL DO TERRENO COM RASPAGEM SUPERFICIAL | E14: m² | F14: 13.46 | G14: 2.54 | H14: =ROUND(G14*(1+$I$3),2) -> 3.2 | I14: =ROUND(F14*H14,2) -> 43.07
A15: 2.2 | B15: ASSENTAMENTO DE TUBOS E CONEXÕES | I15: =SUM(I16:I17) -> 2709.81
A16: 2.2.1 | B16: 73839/009 | C16: Sinapi | D16: ASSENTAMENTO TUBO AÇO, DN 400 MM, | E16: m | F16: 60 | G16: 17.67 | H16: =ROUND(G16*(1+$I$3),2) -> 22.29 | I16: =ROUND(F16*H16,2) -> 1337.4
A17: 2.2.3 | B17: 83725 | C17: Sinapi | D17: ASSENTAMENTO DE PECAS, CONEXOES, APARELHOS E ACESSORIOS DE FERRO FUNDIDO DUCTIL, JUNTA ELASTICA, MECANICA OU FLANGEADA, COM DIAMETROS DE 350 A 600 MM. | E17: kg | F17: 1345.5 | G17: 0.81 | H17: =ROUND(G17*(1+$I$3),2) -> 1.02 | I17: =ROUND(F17*H17,2) -> 1372.41
A18: 2.3 | B18: BLOCOS DE ANCORAGEM | I18: =SUM(I19:I22) -> 2154.01
A19: 2.3.1 | B19: 73406 | C19: Sinapi | D19: CONCRETO FCK=15MPA TRAÇO 1:2,5:3, INCLUIDO PREPARO MECANICO, LANCAMENTO E ADENSAMENTO. | E19: m³ | F19: 1.31 | G19: 406.65 | H19: =ROUND(G19*(1+$I$3),2) -> 513.07 | I19: =ROUND(F19*H19,2) -> 672.12
A20: 2.3.2 | B20: 5651 | C20: Sinapi | D20: FORMA PLANA EM TÁBUA PARA CONCRETO EM FUNDAÇÕES COM REAPROVEITAMENTO DE 5 VEZES. | E20: m² | F20: 6.73 | G20: 23.48 | H20: =ROUND(G20*(1+$I$3),2) -> 29.62 | I20: =ROUND(F20*H20,2) -> 199.34
A21: 2.3.3 | B21: 74254/002 | C21: Sinapi | D21: ARMADURA DE AÇO CA 50, COM DIAMETRO DE 6,3 (1/4) A 12,5MM (1/2) INCLUINDO FORNECIMENTO, CORTE (PERCA DE 10%), DOBRA E COLOCAÇÃO | E21: kg | F21: 20 | G21: 7.57 | H21: 9.55 | I21: =ROUND(F21*H21,2) -> 191
A22: 2.3.4 | B22: 73361 | C22: Sinapi | D22: CONCRETO CICLOPICO FCK=10MPA 30% PEDRA DE MAO INCLUSIVE LANCAMENTO | E22: m³ | F22: 2.69 | G22: 321.61 | H22: 405.78 | I22: =ROUND(F22*H22,2) -> 1091.55
A23: TOTAL DE SERVIÇOS COM BDI | I23: =ROUND(I6+I11,2) -> 13482

Sheet Betume EB7
A1: =[8]RESUMO!$A$6 -> READEQUAÇÃO DOS PERÍMETROS IRRIGADOS DA CODEVASF/4ªSR PARA ADAPTAR OS SISTEMAS DE BOMBEAMENTO COM A REDUÇÃO DE VAZÃO DO RIO SÃO FRANCISCO -(Estações de Bombeamento EB7.) | G1: =[8]RESUMO!$G$6 -> Data Base: JULHO/2015 | H1: Prazo da Obra:
A3: PLANILHA ORÇAMENTÁRIA DE SERVIÇOS | G3: BDI (Serviços): | I3: =BDI_Serviços!E24 -> 0.2617
A4: ITEM | B4: CÓDIGO | C4: FONTE | D4: DESCRIÇÃO | E4: UN. | F4: QUANT. | G4: Preço Unitário (R$) | I4: Preço Total (R$)
G5: Sem BDI | H5: Com BDI
A6: 1 | B6: CAPTAÇÃO | I6: =I7 -> 4310.43
A7: 1.1 | B7: CAPTAÇÃO | I7: =SUM(I8:I9) -> 4310.43
A8: 1.1.1 | C8: CPU | D8: ASSENTAMENTO DAS MOTOBOMBAS NO PONTO DE CAPTAÇÃO | E8: unid. | F8: 1 | G8: =CPU!G144 -> 2790.06 | H8: =ROUND(G8*(1+$I$3),2) -> 3520.22 | I8: =ROUND(F8*H8,2) -> 3520.22
A9: 1.1.2 | B9: 83725 | C9: Sinapi | D9: ASSENTAMENTO DE PECAS, CONEXOES, APARELHOS E ACESSORIOS DE FERRO FUNDIDO DUCTIL, JUNTA ELASTICA, MECANICA OU FLANGEADA, COM DIAMETROS DE 350 A 600 MM. | E9: Kg | F9: 774.72 | G9: 0.81 | H9: =ROUND(G9*(1+$I$3),2) -> 1.02 | I9: =ROUND(F9*H9,2) -> 790.21
A10: 1.1.3 | C10: CPU | D10: INSTALAÇÃO ELÉTRICA DO PAINEL E DAS MOTOBOMBAS | E10: unid. | F10: 1 | G10: =CPU!G162 -> 1023.84 | H10: 1291.78 | I10: =ROUND(F10*H10,2) -> 1291.78
A11: 2 | B11: ADUTORA DE ÁGUA BRUTA | I11: =I12+I15+I18 -> 2837.34
A12: 2.1 | B12: LOCAÇÃO | I12: =SUM(I13:I14) -> 50.37
A13: 2.1.1 | B13: 73679 | C13: Sinapi | D13: LOCAÇÃO DE ADUTORA | E13: m | F13: 34.56 | G13: 0.59 | H13: =ROUND(G13*(1+$I$3),2) -> 0.74 | I13: =ROUND(F13*H13,2) -> 25.57
A14: 2.1.2 | B14: 73948/016 | C14: Sinapi | D14: LIMPEZA MANUAL DO TERRENO COM RASPAGEM SUPERFICIAL | E14: m² | F14: 7.75 | G14: 2.54 | H14: =ROUND(G14*(1+$I$3),2) -> 3.2 | I14: =ROUND(F14*H14,2) -> 24.8
A15: 2.2 | B15: ASSENTAMENTO DE TUBOS E CONEXÕES | I15: =SUM(I16:I17) -> 1548.36
A16: 2.2.1 | B16: 73839/009 | C16: Sinapi | D16: ASSENTAMENTO TUBO AÇO, DN 400 MM, | E16: m | F16: 34 | G16: 17.67 | H16: =ROUND(G16*(1+$I$3),2) -> 22.29 | I16: =ROUND(F16*H16,2) -> 757.86
A17: 2.2.3 | B17: 83725 | C17: Sinapi | D17: ASSENTAMENTO DE PECAS, CONEXOES, APARELHOS E ACESSORIOS DE FERRO FUNDIDO DUCTIL, JUNTA ELASTICA, MECANICA OU FLANGEADA, COM DIAMETROS DE 350 A 600 MM. | E17: kg | F17: 775 | G17: 0.81 | H17: =ROUND(G17*(1+$I$3),2) -> 1.02 | I17: =ROUND(F17*H17,2) -> 790.5
A18: 2.3 | B18: BLOCOS DE ANCORAGEM | I18: =SUM(I19:I22) -> 1238.61
A19: 2.3.1 | B19: 73406 | C19: Sinapi | D19: CONCRETO FCK=15MPA TRAÇO 1:2,5:3, INCLUIDO PREPARO MECANICO, LANCAMENTO E ADENSAMENTO. | E19: m³ | F19: 0.75 | G19: 406.65 | H19: =ROUND(G19*(1+$I$3),2) -> 513.07 | I19: =ROUND(F19*H19,2) -> 384.8
A20: 2.3.2 | B20: 5651 | C20: Sinapi | D20: FORMA PLANA EM TÁBUA PARA CONCRETO EM FUNDAÇÕES COM REAPROVEITAMENTO DE 5 VEZES. | E20: m² | F20: 3.88 | G20: 23.48 | H20: =ROUND(G20*(1+$I$3),2) -> 29.62 | I20: =ROUND(F20*H20,2) -> 114.93
A21: 2.3.3 | B21: 74254/002 | C21: Sinapi | D21: ARMADURA DE AÇO CA 50, COM DIAMETRO DE 6,3 (1/4) A 12,5MM (1/2) INCLUINDO FORNECIMENTO, CORTE (PERCA DE 10%), DOBRA E COLOCAÇÃO | E21: kg | F21: 11.51 | G21: 7.57 | H21: 9.55 | I21: =ROUND(F21*H21,2) -> 109.92
A22: 2.3.4 | B22: 73361 | C22: Sinapi | D22: CONCRETO CICLOPICO FCK=10MPA 30% PEDRA DE MAO INCLUSIVE LANCAMENTO | E22: m³ | F22: 1.55 | G22: 321.61 | H22: 405.78 | I22: =ROUND(F22*H22,2) -> 628.96
A23: TOTAL DE SERVIÇOS COM BDI | I23: =ROUND(I6+I11,2) -> 7147.77

Sheet Betume EB8
A1: =[9]RESUMO!$A$6 -> READEQUAÇÃO DOS PERÍMETROS IRRIGADOS DA CODEVASF/4ªSR PARA ADAPTAR OS SISTEMAS DE BOMBEAMENTO COM A REDUÇÃO DE VAZÃO DO RIO SÃO FRANCISCO -(Estações de Bombeamento EB8.) | G1: =[9]RESUMO!$G$6 -> Data Base: JULHO/2015 | H1: Prazo da Obra:
A3: PLANILHA ORÇAMENTÁRIA DE SERVIÇOS | G3: BDI (Serviços): | I3: =BDI_Serviços!E24 -> 0.2617
A4: ITEM | B4: CÓDIGO | C4: FONTE | D4: DESCRIÇÃO | E4: UN. | F4: QUANT. | G4: Preço Unitário (R$) | I4: Preço Total (R$)
G5: Sem BDI | H5: Com BDI
A6: 1 | B6: CAPTAÇÃO | I6: =I7 -> 4310.43
A7: 1.1 | B7: CAPTAÇÃO | I7: =SUM(I8:I9) -> 4310.43
A8: 1.1.1 | C8: CPU | D8: ASSENTAMENTO DAS MOTOBOMBAS NO PONTO DE CAPTAÇÃO | E8: unid. | F8: 1 | G8: =CPU!G144 -> 2790.06 | H8: =ROUND(G8*(1+$I$3),2) -> 3520.22 | I8: =ROUND(F8*H8,2) -> 3520.22
A9: 1.1.2 | B9: 83725 | C9: Sinapi | D9: ASSENTAMENTO DE PECAS, CONEXOES, APARELHOS E ACESSORIOS DE FERRO FUNDIDO DUCTIL, JUNTA ELASTICA, MECANICA OU FLANGEADA, COM DIAMETROS DE 350 A 600 MM. | E9: Kg | F9: 774.72 | G9: 0.81 | H9: =ROUND(G9*(1+$I$3),2) -> 1.02 | I9: =ROUND(F9*H9,2) -> 790.21
A10: 1.1.3 | C10: CPU | D10: INSTALAÇÃO ELÉTRICA DO PAINEL E DAS MOTOBOMBAS | E10: unid. | F10: 1 | G10: =CPU!G162 -> 1023.84 | H10: 1291.78 | I10: =ROUND(F10*H10,2) -> 1291.78
A11: 2 | B11: ADUTORA DE ÁGUA BRUTA | I11: =I12+I15+I18 -> 2837.34
A12: 2.1 | B12: LOCAÇÃO | I12: =SUM(I13:I14) -> 50.37
A13: 2.1.1 | B13: 73679 | C13: Sinapi | D13: LOCAÇÃO DE ADUTORA | E13: m | F13: 34.56 | G13: 0.59 | H13: =ROUND(G13*(1+$I$3),2) -> 0.74 | I13: =ROUND(F13*H13,2) -> 25.57
A14: 2.1.2 | B14: 73948/016 | C14: Sinapi | D14: LIMPEZA MANUAL DO TERRENO COM RASPAGEM SUPERFICIAL | E14: m² | F14: 7.75 | G14: 2.54 | H14: =ROUND(G14*(1+$I$3),2) -> 3.2 | I14: =ROUND(F14*H14,2) -> 24.8
A15: 2.2 | B15: ASSENTAMENTO DE TUBOS E CONEXÕES | I15: =SUM(I16:I17) -> 1548.36
A16: 2.2.1 | B16: 73839/009 | C16: Sinapi | D16: ASSENTAMENTO TUBO AÇO, DN 400 MM, | E16: m | F16: 34 | G16: 17.67 | H16: =ROUND(G16*(1+$I$3),2) -> 22.29 | I16: =ROUND(F16*H16,2) -> 757.86
A17: 2.2.2 | B17: 83725 | C17: Sinapi | D17: ASSENTAMENTO DE PECAS, CONEXOES, APARELHOS E ACESSORIOS DE FERRO FUNDIDO DUCTIL, JUNTA ELASTICA, MECANICA OU FLANGEADA, COM DIAMETROS DE 350 A 600 MM. | E17: kg | F17: 775 | G17: 0.81 | H17: =ROUND(G17*(1+$I$3),2) -> 1.02 | I17: =ROUND(F17*H17,2) -> 790.5
A18: 2.3 | B18: BLOCOS DE ANCORAGEM | I18: =SUM(I19:I22) -> 1238.61
A19: 2.3.1 | B19: 73406 | C19: Sinapi | D19: CONCRETO FCK=15MPA TRAÇO 1:2,5:3, INCLUIDO PREPARO MECANICO, LANCAMENTO E ADENSAMENTO. | E19: m³ | F19: 0.75 | G19: 406.65 | H19: =ROUND(G19*(1+$I$3),2) -> 513.07 | I19: =ROUND(F19*H19,2) -> 384.8
A20: 2.3.2 | B20: 5651 | C20: Sinapi | D20: FORMA PLANA EM TÁBUA PARA CONCRETO EM FUNDAÇÕES COM REAPROVEITAMENTO DE 5 VEZES. | E20: m² | F20: 3.88 | G20: 23.48 | H20: =ROUND(G20*(1+$I$3),2) -> 29.62 | I20: =ROUND(F20*H20,2) -> 114.93
A21: 2.3.3 | B21: 74254/002 | C21: Sinapi | D21: ARMADURA DE AÇO CA 50, COM DIAMETRO DE 6,3 (1/4) A 12,5MM (1/2) INCLUINDO FORNECIMENTO, CORTE (PERCA DE 10%), DOBRA E COLOCAÇÃO | E21: kg | F21: 11.51 | G21: 7.57 | H21: 9.55 | I21: =ROUND(F21*H21,2) -> 109.92
A22: 2.3.4 | B22: 73361 | C22: Sinapi | D22: CONCRETO CICLOPICO FCK=10MPA 30% PEDRA DE MAO INCLUSIVE LANCAMENTO | E22: m³ | F22: 1.55 | G22: 321.61 | H22: 405.78 | I22: =ROUND(F22*H22,2) -> 628.96
A23: TOTAL DE SERVIÇOS COM BDI | I23: =ROUND(I6+I11,2) -> 7147.77

Sheet CPU
A1: COMPOSIÇÃO DE PREÇO UNITÁRIO | D1: 1.0
A2: Cód. SINAPI
B3: SERVIÇO: MOBILIZAÇÃO (Propriá, Cotinguiba-Pindoba, Betume) | F3: UNIDADE: | G3: UD
B4: EQUIPAMENTO
B5: DISCRIMINAÇÃO | C5: UNIDADE | D5: QUANT. | F5: P.UNIT. | G5: P.TOTAL
A6: 3366 | B6: Guindaste tipo Munck, cap 5T, Locação com operador, combustível e manutenção | C6: h | D6: 28 | F6: 126 | G6: =D6*F6 -> 3528
B7: SUB-TOTAL | G7: =G6 -> 3528
B8: MÃO-DE-OBRA
B9: DISCRIMINAÇÃO | C9: UNIDADE | D9: QUANT. | F9: P.UNIT. | G9: P.TOTAL
A10: 6111 | B10: Servente | C10: h | D10: 28 | F10: 6.86 | G10: =D10*F10 -> 192.08
B11: SUB-TOTAL | G11: =G10 -> 192.08
B13: Encargos sociais e trabalhistas
B14: CUSTO UNITÁRIO TOTAL | G14: =G7+G11 -> 3720.08
A17: COMPOSIÇÃO DE PREÇO UNITÁRIO | D17: 1.1
A18: Cód. SINAPI
B19: SERVIÇO: DESMOBILIZAÇÃO (Propriá, Cotinguiba-Pindoba, Betume) | F19: UNIDADE: | G19: UD
B20: EQUIPAMENTO
B21: DISCRIMINAÇÃO | C21: UNIDADE | D21: QUANT. | F21: P.UNIT. | G21: P.TOTAL
A22: 3366 | B22: Guindaste tipo Munck, cap 5T, Locação com operador, combustível e manutenção | C22: h | D22: 8 | F22: 126 | G22: =D22*F22 -> 1008
B23: SUB-TOTAL | G23: =G22 -> 1008
B24: MÃO-DE-OBRA
B25: DISCRIMINAÇÃO | C25: UNIDADE | D25: QUANT. | F25: P.UNIT. | G25: P.TOTAL
A26: 6111 | B26: Servente | C26: h | D26: 8 | F26: 6.86 | G26: =D26*F26 -> 54.88
B27: SUB-TOTAL | G27: =G26 -> 54.88
B29: Encargos sociais e trabalhistas
B30: CUSTO UNITÁRIO TOTAL | G30: =G23+G27 -> 1062.88
A33: COMPOSIÇÃO DE PREÇO UNITÁRIO | D33: 1.2
A34: Cód. SINAPI
B35: SERVIÇO: ADMINISTRAÇÃO LOCAL (Propriá, Cotinguiba-Pindoba, Betume) | F35: UNIDADE: | G35: Mês
B36: EQUIPAMENTO
B37: DISCRIMINAÇÃO | C37: UNIDADE | D37: QUANT. | F37: P.UNIT. | G37: P.TOTAL
A38: Codevasf | B38: Veículo tipo pick-up, cabine dupla, 4 x 4 | C38: mês | D38: 1 | F38: 6142.64 | G38: =D38*F38 -> 6142.64
B39: SUB-TOTAL | G39: =G38 -> 6142.64
B40: MATERIAL
B41: DISCRIMINAÇÃO | C41: UNIDADE | D41: QUANT. | F41: P.UNIT. | G41: P.TOTAL
B42: Telefone | C42: mês | D42: 1 | F42: 100 | G42: =D42*F42 -> 100
B43: Internet | C43: mês | D43: 1 | F43: 80 | G43: =D43*F43 -> 80
B44: Energia elétrica | C44: mês | D44: 1 | F44: 150 | G44: =D44*F44 -> 150
B45: Água e esgoto | C45: mês | D45: 1 | F45: 80 | G45: =D45*F45 -> 80
B46: Materiais de limpeza | C46: unid. | D46: 1 | F46: 50 | G46: =D46*F46 -> 50
B47: SUB-TOTAL | G47: =SUM(G42:G46) -> 460
B48: MÃO-DE-OBRA
B49: DISCRIMINAÇÃO | C49: UNIDADE | D49: QUANT. | F49: P.UNIT. | G49: P.TOTAL
A50: 6121 | B50: Auxiliar de serviços gerais | C50: h | D50: 176 | F50: 6.28 | G50: =D50*F50 -> 1105.28
B51: SUB-TOTAL | G51: =G50 -> 1105.28
B53: Encargos sociais e trabalhistas
B54: CUSTO UNITÁRIO TOTAL | G54: =G39+G47+G51 -> 7707.92
A56: COMPOSIÇÃO DE PREÇO UNITÁRIO | D56: 1.3
A57: Cód. SINAPI
B58: SERVIÇO: ASSENTAMENTO DAS MOTOBOMBAS NO PONTO DE CAPTAÇÃO (PROPRIÁ) | F58: UNIDADE: | G58: UD
B59: EQUIPAMENTO
B60: DISCRIMINAÇÃO | C60: UNIDADE | D60: QUANT. | F60: P.UNIT. | G60: P.TOTAL
A61: 3366 | B61: Guindaste tipo Munck, cap 5T, Locação com operador, combustível e manutenção | C61: h | D61: 21 | F61: 126 | G61: =D61*F61 -> 2646
B62: SUB-TOTAL | G62: =G61 -> 2646
B63: MÃO-DE-OBRA
B64: DISCRIMINAÇÃO | C64: UNIDADE | D64: QUANT. | F64: P.UNIT. | G64: P.TOTAL
A65: 6111 | B65: Servente | C65: h | D65: =D61 -> 21 | F65: 6.86 | G65: =D65*F65 -> 144.06
B66: SUB-TOTAL | G66: =G65 -> 144.06
B68: Encargos sociais e trabalhistas
B69: CUSTO UNITÁRIO TOTAL | G69: =G62+G66 -> 2790.06
A71: COMPOSIÇÃO DE PREÇO UNITÁRIO | D71: 1.4
A72: Cód. SINAPI
B73: SERVIÇO: ASSENTAMENTO DAS MOTOBOMBAS NO PONTO DE CAPTAÇÃO (COTINGUIBA) | F73: UNIDADE: | G73: UD
B74: EQUIPAMENTO
B75: DISCRIMINAÇÃO | C75: UNIDADE | D75: QUANT. | F75: P.UNIT. | G75: P.TOTAL
A76: 3366 | B76: Guindaste tipo Munck, cap 5T, Locação com operador, combustível e manutenção | C76: h | D76: 35 | F76: 126 | G76: =D76*F76 -> 4410
B77: SUB-TOTAL | G77: =G76 -> 4410
B78: MÃO-DE-OBRA
B79: DISCRIMINAÇÃO | C79: UNIDADE | D79: QUANT. | F79: P.UNIT. | G79: P.TOTAL
A80: 6111 | B80: Servente | C80: h | D80: =D76 -> 35 | F80: 6.86 | G80: =D80*F80 -> 240.1
B81: SUB-TOTAL | G81: =G80 -> 240.1
B83: Encargos sociais e trabalhistas
B84: CUSTO UNITÁRIO TOTAL | G84: =G77+G81 -> 4650.1
A87: COMPOSIÇÃO DE PREÇO UNITÁRIO | D87: 1.5
A88: Cód. SINAPI
B89: SERVIÇO: ASSENTAMENTO DAS MOTOBOMBAS NO PONTO DE CAPTAÇÃO (EB2 E EB3 - BETUME) | F89: UNIDADE: | G89: UD
B90: EQUIPAMENTO
B91: DISCRIMINAÇÃO | C91: UNIDADE | D91: QUANT. | F91: P.UNIT. | G91: P.TOTAL
A92: 3366 | B92: Guindaste tipo Munck, cap 5T, Locação com operador, combustível e manutenção | C92: h | D92: 56.5 | F92: 126 | G92: =D92*F92 -> 7119
B93: SUB-TOTAL | G93: =G92 -> 7119
B94: MÃO-DE-OBRA
B95: DISCRIMINAÇÃO | C95: UNIDADE | D95: QUANT. | F95: P.UNIT. | G95: P.TOTAL
A96: 6111 | B96: Servente | C96: h | D96: =D92 -> 56.5 | F96: 6.86 | G96: =D96*F96 -> 387.59
B97: SUB-TOTAL | G97: =G96 -> 387.59
B99: Encargos sociais e trabalhistas
B100: CUSTO UNITÁRIO TOTAL | G100: =G93+G97 -> 7506.59
A101: COMPOSIÇÃO DE PREÇO UNITÁRIO | D101: 1.6
A102: Cód. SINAPI
B103: SERVIÇO: ASSENTAMENTO DAS MOTOBOMBAS NO PONTO DE CAPTAÇÃO (EB5 BETUME) | F103: UNIDADE: | G103: UD
B104: EQUIPAMENTO
B105: DISCRIMINAÇÃO | C105: UNIDADE | D105: QUANT. | F105: P.UNIT. | G105: P.TOTAL
A106: 3366 | B106: Guindaste tipo Munck, cap 5T, Locação com operador, combustível e manutenção | C106: h | D106: 35 | F106: 126 | G106: =D106*F106 -> 4410
B107: SUB-TOTAL | G107: =G106 -> 4410
B108: MÃO-DE-OBRA
B109: DISCRIMINAÇÃO | C109: UNIDADE | D109: QUANT. | F109: P.UNIT. | G109: P.TOTAL
A110: 6111 | B110: Servente | C110: h | D110: =D106 -> 35 | F110: 6.86 | G110: =D110*F110 -> 240.1
B111: SUB-TOTAL | G111: =G110 -> 240.1
B113: Encargos sociais e trabalhistas
B114: CUSTO UNITÁRIO TOTAL | G114: =G107+G111 -> 4650.1
A116: COMPOSIÇÃO DE PREÇO UNITÁRIO | D116: 1.7
A117: Cód. SINAPI
B118: SERVIÇO: ASSENTAMENTO DAS MOTOBOMBAS NO PONTO DE CAPTAÇÃO (BETUME EB7) | F118: UNIDADE: | G118: UD
B119: EQUIPAMENTO
B120: DISCRIMINAÇÃO | C120: UNIDADE | D120: QUANT. | F120: P.UNIT. | G120: P.TOTAL
A121: 3366 | B121: Guindaste tipo Munck, cap 5T, Locação com operador, combustível e manutenção | C121: h | D121: 21 | F121: 126 | G121: =D121*F121 -> 2646
B122: SUB-TOTAL | G122: =G121 -> 2646
B123: MÃO-DE-OBRA
B124: DISCRIMINAÇÃO | C124: UNIDADE | D124: QUANT. | F124: P.UNIT. | G124: P.TOTAL
A125: 6111 | B125: Servente | C125: h | D125: =D121 -> 21 | F125: 6.86 | G125: =D125*F125 -> 144.06
B126: SUB-TOTAL | G126: =G125 -> 144.06
B128: Encargos sociais e trabalhistas
B129: CUSTO UNITÁRIO TOTAL | G129: =G122+G126 -> 2790.06
A131: COMPOSIÇÃO DE PREÇO UNITÁRIO | D131: 1.8
A132: Cód. SINAPI
B133: SERVIÇO: ASSENTAMENTO DAS MOTOBOMBAS NO PONTO DE CAPTAÇÃO (BETUME EB8) | F133: UNIDADE: | G133: UD
B134: EQUIPAMENTO
B135: DISCRIMINAÇÃO | C135: UNIDADE | D135: QUANT. | F135: P.UNIT. | G135: P.TOTAL
A136: 3366 | B136: Guindaste tipo Munck, cap 5T, Locação com operador, combustível e manutenção | C136: h | D136: 21 | F136: 126 | G136: =D136*F136 -> 2646
B137: SUB-TOTAL | G137: =G136 -> 2646
B138: MÃO-DE-OBRA
B139: DISCRIMINAÇÃO | C139: UNIDADE | D139: QUANT. | F139: P.UNIT. | G139: P.TOTAL
A140: 6111 | B140: Servente | C140: h | D140: =D136 -> 21 | F140: 6.86 | G140: =D140*F140 -> 144.06
B141: SUB-TOTAL | G141: =G140 -> 144.06
B143: Encargos sociais e trabalhistas
B144: CUSTO UNITÁRIO TOTAL | G144: =G137+G141 -> 2790.06
A146: COMPOSIÇÃO DE PREÇO UNITÁRIO | D146: 1.9
A147: Cód. SINAPI
B148: SERVIÇO: INSTALAÇÃO ELÉTRICA DO PAINEL E DAS MOTOBOMBAS (todas as EB's, exceto EB 2 e EB 3 - Betume) | F148: UNIDADE: | G148: UD
B149: EQUIPAMENTO
B150: DISCRIMINAÇÃO | C150: UNIDADE | D150: QUANT. | F150: P.UNIT. | G150: P.TOTAL
B152: SUB-TOTAL | G152: =G151 -> 0
B153: MÃO-DE-OBRA
B154: DISCRIMINAÇÃO | C154: UNIDADE | D154: QUANT. | F154: P.UNIT. | G154: P.TOTAL
A155: 2438 | B155: Eletrotécnico | C155: h | D155: 24 | F155: 15.59 | G155: =D155*F155 -> 374.16
A156: 2439 | B156: Eletricista industrial | C156: h | D156: 24 | F156: 13.09 | G156: =D156*F156 -> 314.16
A157: 247 | B157: Auxiliar de eletricista | C157: h | D157: 48 | F157: 6.99 | G157: =D157*F157 -> 335.52
B159: SUB-TOTAL | G159: =G155+G156+G157 -> 1023.84
B161: Encargos sociais e trabalhistas
B162: CUSTO UNITÁRIO TOTAL | G162: =G152+G159 -> 1023.84
A165: COMPOSIÇÃO DE PREÇO UNITÁRIO | D165: 1.10
A166: Cód. SINAPI
B167: SERVIÇO: INSTALAÇÃO ELÉTRICA DO PAINEL E DAS MOTOBOMBAS (EB2 e EB3) BETUME | F167: UNIDADE: | G167: UD
B168: EQUIPAMENTO
B169: DISCRIMINAÇÃO | C169: UNIDADE | D169: QUANT. | F169: P.UNIT. | G169: P.TOTAL
B171: SUB-TOTAL | G171: =G170 -> 0
B172: MÃO-DE-OBRA
B173: DISCRIMINAÇÃO | C173: UNIDADE | D173: QUANT. | F173: P.UNIT. | G173: P.TOTAL
A174: 2438 | B174: Eletrotécnico | C174: h | D174: 60 | F174: 15.59 | G174: =D174*F174 -> 935.4
A175: 2439 | B175: Eletricista industrial | C175: h | D175: 60 | F175: 13.09 | G175: =D175*F175 -> 785.4
A176: 247 | B176: Auxiliar de eletricista | C176: h | D176: 72 | F176: 6.99 | G176: =D176*F176 -> 503.28
B178: SUB-TOTAL | G178: =G174+G175+G176 -> 2224.08
B180: Encargos sociais e trabalhistas
B181: CUSTO UNITÁRIO TOTAL | G181: =G171+G178 -> 2224.08

Sheet BDI_Serviços
B3: DETALHAMENTO DO BDI
B4: Serviços
B7: Item | C7: Descrição dos serviços | D7: Preço de Venda (%) | E7: Custo Direto (%)
B9: Item | C9: Descrição dos serviços | D9: Preço de Venda (%) | E9: Custo Direto (%)
B11: 1 | C11: Administração Central (A) | E11: 0.045
B13: 2 | C13: Impostos e Taxas (I) | D13: =SUM(D14:D17) -> 0.1065
B14: 2.1 | C14: ISS | D14: 0.05
B15: 2.2 | C15: PIS | D15: 0.0065
B16: 2.3 | C16: Cofins | D16: 0.03
B17: 2.4 | C17: CPRB | D17: 0.02
B18: 3 | C18: Risco, seguro e garantia (R) | E18: 0.008
B20: 4 | C20: Despesas Financeiras (DF) | E20: 0.01
B22: 5 | C22: Lucro (L) | E22: 0.06
C24: BDI* (%) | E24: =ROUND(((((1+$E$11+$E$18)*(1+$E$20)*(1+$E$22))/(1-$D$13))-1),4) -> 0.2617
B26: Acórdão nº 2369/2011 - TCU - Plenário - DOU nº174 em 20 de setembro de 2011
B27: BDI (%) = ((((1+AC+R)*(1+DF)*(1+L))/(1-I))-1)

Sheet Forn Propriá
C2: Ministério da Integração Nacional
C3: Companhia de Desenvolvimento dos Vales do São Francisco e do Parnaíba
B6: PLANILHA ANALÍTICA DE COTAÇÃO DOS VALORES EB 01 Propriá
B7: ITEM | C7: DISCRIMINAÇÃO | D7: Un. | E7: Quant. | F7: Codevasf
F9: Unit. | G9: Total
B10: FORNECIMENTO
B11: 1 | C11: Fornecimento de Bomba do tipo Anfíbia, com vazão de 1900 m³/h e altura manometrica de 8,5 m.c.a. (ponto de operação). Motores elétricos de 100 CV, 6 a 8 polos, 380 V, 60 HZ e rotação permitida de até 1185 rpm. | D11: Unid. | E11: 1 | F11: 180210 | G11: =$E$11*F11 -> 180210
B12: 2 | C12: Fornecimento de Bomba do tipo Anfíbia, com vazão de 1900 m³/h e altura manometrica de 10,11 m.c.a. (ponto de operação). Motores elétricos de 100 CV, 6 a 8 polos, 380 V, 60 HZ e rotação permitida de até 1185 rpm. | D12: Unid. | E12: 1 | F12: 180210 | G12: =$E$12*F12 -> 180210
B13: 3 | C13: CCM ccontendo 01 chave de partida Soft Starter microprocessada de 100 CV, 380 V, montadas em armário metálico, com proteção de curto através de disjuntor tripolar, proteção de falta de fase, proteção de sobre e subcorrente, proteção de sobre e subtensão, proteção contra surto, botão liga/desliga, sinalização indicando motor ligado, botão de emergência. contator de by-pass, chave seleção manual/automático, monitoração via IHM de: amperímetro, voltímetro, horímetro e cossimetro. | D13: Unid. | E13: 2 | F13: 46086.76667 | G13: =$E$13*F13 -> 92173.53333
B14: 4 | C14: Cabo Elétrico com bitola de 25 mm² | D14: m | E14: 360 | F14: 33.14 | G14: =$E$14*F14 -> 11930.4
B15: 5 | C15: Curva 45º com flange em Aço ASTM-A36 - DN 400 mm - PN 10 - incluso proteção catódica | D15: Unid. | E15: 3 | F15: 3408.856667 | G15: =$E$15*F15 -> 10226.57
B16: 6 | C16: Curva 90º com flange em Aço ASTM-A36 - DN 400 mm - PN 10 - incluso proteção catódica | D16: Unid. | E16: 3 | F16: 3637.363333 | G16: =$E$16*F16 -> 10912.09
B17: 7 | C17: Válvulas de Retenção tipo Dupla Portinhola - DN 400 mm - PN 10 | D17: Unid. | E17: 1 | F17: 7097.41 | G17: =$E$17*F17 -> 7097.41
B18: 8 | C18: Redução com Flanges Concênticas em Aço ASTM-A36 - DN (500 mm x 400 mm) - PN10 - incluso proteção catódica - L = 0,60 m | D18: Unid. | E18: 1 | F18: 3393.046667 | G18: =$E$18*F18 -> 3393.046667
B19: 9 | C19: Tubo em Aço ASTM-A36 flangeado - DN 400 mm - PN 10 - incluso proteção catódica - L = 5.8 m | D19: Unid. | E19: 5 | F19: 5709.3 | G19: =$E$19*F19 -> 28546.5
B20: TOTAL | G20: =SUM(G9:G19) -> 524699.55

Sheet Forn Cotinguiba
C2: Ministério da Integração Nacional
C3: Companhia de Desenvolvimento dos Vales do São Francisco e do Parnaíba
B6: PLANILHA ANALÍTICA DE COTAÇÃO DOS VALORES EB 02 COTINGUIBA
B7: ITEM | C7: DISCRIMINAÇÃO | D7: Un. | E7: Quant. | F7: Codevasf
F9: Unit. | G9: Total
B10: FORNECIMENTO
B11: 1 | C11: Fornecimento de Bomba do tipo Anfíbia, com vazão de 1900 m³/h e altura manometrica de 8 m.c.a. (ponto de operação). Motores elétricos de 100 CV, 6 a 8 polos, 380 V, 60 HZ e rotação permitida de até 1200 rpm. | D11: Unid. | E11: 1 | F11: 180210 | G11: =$E$11*F11 -> 180210
B12: 2 | C12: CCM contendo 01 chave de partida Soft Starter microprocessada de 100 CV, 380 V, montadas em armário metálico, com proteção de curto através de disjuntor tripolar, proteção de falta de fase, proteção de sobre e subcorrente, proteção de sobre e subtensão, proteção contra surto, botão liga/desliga, sinalização indicando motor ligado, botão de emergência. contator de by-pass, chave seleção manual/automático, monitoração via IHM de: amperímetro, voltímetro, horímetro e cossimetro. | D12: Unid. | E12: 1 | F12: 46086.76667 | G12: =$E$12*F12 -> 46086.76667
B13: 3 | C13: Cabo Elétrico com bitola de 25 mm² | D13: m | E13: 360 | F13: 33.14 | G13: =$E$13*F13 -> 11930.4
B14: 4 | C14: Curva 11° 15' com flange em Aço ASTM-A36 - DN 500 mm - PN 10 - incluso proteção catódica | D14: Unid. | E14: 1 | F14: 4798.846667 | G14: =$E$14*F14 -> 4798.846667
B15: 5 | C15: Curva 45º' com flange em Aço ASTM-A36 - DN 500 mm - PN 10 - incluso proteção catódica | D15: Unid. | E15: 1 | F15: 4876.64 | G15: =$E$15*F15 -> 4876.64
B16: 6 | C16: Curva 90º com flange em Aço ASTM-A36 - DN 500 mm - PN 10 - incluso proteção catódica | D16: Unid. | E16: 2 | F16: 5177.566667 | G16: =$E$16*F16 -> 10355.13333
B17: 7 | C17: Válvulas de Retenção tipo Dupla Portinhola - DN 500 mm - PN 10 | D17: Unid. | E17: 1 | F17: 11213.55333 | G17: =$E$17*F17 -> 11213.55333
B18: 8 | C18: Redução com Flanges Concênticas em Aço ASTM-A36 - DN (600 mm x 500 mm) - PN10 - incluso proteção catódica - L = 0,60 m | D18: Unid. | E18: 1 | F18: 4455.863333 | G18: =$E$18*F18 -> 4455.863333
B19: 9 | C19: Tubo em Aço ASTM-A36 flangeado - DN 500 mm - PN 10 - incluso proteção catódica - L = 5.8 m | D19: Unid. | E19: 9 | F19: 7265.47 | G19: =$E$19*F19 -> 65389.23
B20: 10 | C20: Tubo em PEAD - DN 500 mm - PN 5 - NBR 15561 - Barra 12 metros. | D20: m | E20: 60 | F20: 791.1433333 | G20: =$E$20*F20 -> 47468.6
B21: 11 | C21: Módulo Flutuante Principal Aço SAE 1020 próprio para inserção do conjunto Moto Bomba, com Elementos Hidromecânicos, Sistema de Ancoragem e flutuantes auxiliares para sustentar tubulação flexível de PEAD. Incluso proteção catódica | D21: Unid. | E21: 1 | F21: 68352 | G21: =$E$21*F21 -> 68352
B22: TOTAL | G22: =SUM(G11:G21) -> 455137.0333
B24: OBS.: Incluso todos os impostos (taxas, BDI's e emolumentos...)

Sheet Forn Betume EB2 e EB3
C2: Ministério da Integração Nacional
C3: Companhia de Desenvolvimento dos Vales do São Francisco e do Parnaíba
B6: PLANILHA ANALÍTICA DE COTAÇÃO DOS VALORES EB 02 e EB 03 BETUME
B7: ITEM | C7: DISCRIMINAÇÃO | D7: Un. | E7: Quant. | F7: Codevasf
F9: Unit. | G9: Total
B10: FORNECIMENTO
B11: 1 | C11: Bomba do tipo Anfíbia, com vazão de 2600 m³/h e altura manometrica de 8 m.c.a. (ponto de operação). Motor elétrico de 125 CV, 6 a 8 polos, 380 V, 60 HZ e rotação permitida de até 1185 rpm. | D11: Unid. | E11: 2 | F11: 186130 | G11: =$E$11*F11 -> 372260
B12: 2 | C12: CCM contendo 01 chave1 de partida SOFT STARTER microprocessada de 125CV, 380v, montadas em armário metálico, com proteção de curto através de disjuntor tripolar, proteção de falta de fase, proteção de sobre e subcorrente, proteção de sobre e subtensão, botão liga/desliga, sinalização indicando motor ligado, botão de emergência. contator de by-pass, chave seleção manual/autonmático, monitoração via ihm de: amperímetro, voltímetro e horímetro. | D12: Unid. | E12: 2 | F12: 49995.80333 | G12: =$E$12*F12 -> 99991.60667
B13: 3 | C13: Curva 90° com flange em Aço ASTM-A36 - DN 400 mm - PN 10 - incluso proteção catódica | D13: Unid. | E13: 6 | F13: 3637.363333 | G13: =$E$13*F13 -> 21824.18
B14: 4 | C14: Válvulas de Retenção tipo Dupla Portinhola - DN 400 mm - PN 10 | D14: Unid. | E14: 3 | F14: 7097.41 | G14: =$E$14*F14 -> 21292.23
B15: 5 | C15: Redução com Flanges Concênticas em Aço ASTM-A36 - DN (500 mm x 400 mm) - PN10 - incluso proteção catódica - L = 0,60 m | D15: Unid. | E15: 3 | F15: 3393.046667 | G15: =$E$15*F15 -> 10179.14
B16: 6 | C16: Redução com Flanges Concênticas em Aço ASTM-A36 - DN (600 mm x 500) - PN 10 - incluso proteção catódica - L = 0,60 m | D16: Unid. | E16: 3 | F16: 4455.863333 | G16: =$E$16*F16 -> 13367.59
B17: 7 | C17: Tubo em Aço ASTM-A36 flangeado - DN 400 mm - PN 10 - incluso proteção catódica - L = 4.95 m | D17: Unid. | E17: 3 | F17: 5081.513333 | G17: =$E$17*F17 -> 15244.54
B18: 8 | C18: Tubo em Aço ASTM-A36flangeado - DN 400 mm - PN 10 - incluso proteção catódica - L = 4.00 m | D18: Unid. | E18: 3 | F18: 4379.873333 | G18: =$E$18*F18 -> 13139.62
B19: 9 | C19: Tubo em FºF° PB K7 - DN 400 mm | D19: m | E19: 40 | F19: 941.12 | G19: =$E$19*F19 -> 37644.8
B20: 10 | C20: Carretel Flangeado em Aço ASTM-A36 flageando - DN 400 mm - PN 10 - incluso proteção catódica - L = 0.70 m | D20: Unid. | E20: 1 | F20: 3556.8 | G20: =$E$20*F20 -> 3556.8
B21: TOTAL | G21: =SUM(G11:G20) -> 608500.5067
B23: OBS.: Incluso todos os impostos (taxas, BDI's, emolumentos ...)

Sheet Forn Betume EB5
C2: Ministério da Integração Nacional
C3: Companhia de Desenvolvimento dos Vales do São Francisco e do Parnaíba
B6: PLANILHA ANALÍTICA DE COTAÇÃO DOS VALORES EB 05 BETUME
B7: ITEM | C7: DISCRIMINAÇÃO | D7: Un. | E7: Quant. | F7: Codevasf
F9: Unit. | G9: Total
B10: FORNECIMENTO
B11: 1 | C11: Fornecimento de Bomba do tipo Anfíbia, com vazão de 1225 m³/h e altura manometrica de 8,5 m.c.a. (ponto de operação). Motores elétricos de 100 CV, 6 a 8 polos, 380 V, 60 HZ e rotação permitida de até 1200 rpm. | D11: Unid. | E11: 1 | F11: 180210 | G11: =$E$11*F11 -> 180210
B12: 2 | C12: CCM contendo 01 Chave de partida SOFT STARTER microprocessada de 100 CV, 380 V, montadas em armário metálico, com proteção de curto através de disjuntor tripolar, proteção de falta de fase, proteção de sobre e subcorrente, proteção de sobre e subtensão, proteção contra surto, botão liga/desliga, sinalização indicando motor ligado, botão de emergência. contator de by-pass, chave seleção manual/automático, monitoração via IHM de: amperímetro, voltímetro, horímetro e cossimetro. | D12: Unid. | E12: 1 | F12: 46086.76667 | G12: =$E$12*F12 -> 46086.76667
B13: 3 | C13: Cabo Elétrico com bitola de 25 mm² | D13: m | E13: 360 | F13: 33.14 | G13: =$E$13*F13 -> 11930.4
B14: 4 | C14: Curva 90° com flange em Aço ASTM-A36 - DN 500 mm - PN 10 - incluso proteção catódica | D14: Unid. | E14: 1 | F14: 5177.566667 | G14: =$E$14*F14 -> 5177.566667
B15: 5 | C15: Curva 45° com flange em Aço ASTM-A36 - DN 500 mm - PN 10 - incluso proteção catódica | D15: Unid. | E15: 3 | F15: 4876.64 | G15: =$E$15*F15 -> 14629.92
B16: 6 | C16: Curva 22°30' com flange em Aço ASTM-A36 - DN 500 mm - PN 10 - incluso proteção catódica | D16: Unid. | E16: 2 | F16: 4795.326667 | G16: =$E$16*F16 -> 9590.653333
B17: 7 | C17: Válvulas de Retenção - Dupla Portinhola- DN 500 mm - PN 10 | D17: Unid. | E17: 3 | F17: 11213.55333 | G17: =$E$17*F17 -> 33640.66
B18: 8 | C18: Redução com Flanges Concênticas em Aço ASTM-A36 - DN (600 mm x 500 mm) - PN10 - incluso proteção catódica - L = 0,35 m | D18: Unid. | E18: 3 | F18: 4455.863333 | G18: =$E$18*F18 -> 13367.59
B19: 9 | C19: Tubo em Aço ASTM-A36 flangeado - DN 500 mm - PN 10 - incluso proteção catódica - L = 5,80 m | D19: Unid. | E19: 8 | F19: 7265.47 | G19: =$E$19*F19 -> 58123.76
B20: 10 | C20: Tubo em PEAD - DN 500 mm - PN 10 - NBR 15561 - Barra 12 metros. | D20: Unid. | E20: 60 | F20: 791.1433333 | G20: =$E$20*F20 -> 47468.6
B21: 11 | C21: Módulo Flutuante Principal Aço SAE 1020 próprio para inserção do conjunto Moto Bomba, com Elementos Hidromecânicos, Sistema de Ancoragem e flutuantes auxiliares para sustentar tubulação flexível de PEAD. Incluso proteção catódica | D21: Unid. | E21: 1 | F21: 68352 | G21: =$E$11*F21 -> 68352
B22: TOTAL | G22: =SUM(G11:G21) -> 488577.9167

Sheet Forn Betume EB7
C2: Ministério da Integração Nacional
C3: Companhia de Desenvolvimento dos Vales do São Francisco e do Parnaíba
B6: PLANILHA ANALÍTICA DE COTAÇÃO DOS VALORES EB 07 BETUME
B7: ITEM | C7: DISCRIMINAÇÃO | D7: Un. | E7: Quant. | F7: Codevasf
F9: Unit. | G9: Total
B10: FORNECIMENTO
B11: 1 | C11: Fornecimento de Bomba do tipo Anfíbia, com vazão de 1700 m³/h e altura manometrica de 8,5 m.c.a. (ponto de operação). Motores elétricos de 100 CV, 6 a 8 polos, 380 V, 60 HZ e rotação permitida de até 1200 rpm. | D11: Unid. | E11: 1 | F11: 180210 | G11: =$E$11*F11 -> 180210
B12: 2 | C12: CCM contendo Chave de partida SOFT STARTER microprocessada de 100 CV, 380 V, montadas em armário metálico, com proteção de curto através de disjuntor tripolar, proteção de falta de fase, proteção de sobre e subcorrente, proteção de sobre e subtensão, proteção contra surto, botão liga/desliga, sinalização indicando motor ligado, botão de emergência. contator de by-pass, chave seleção manual/automático, monitoração via IHM de: amperímetro, voltímetro, horímetro e cossimetro. | D12: Unid. | E12: 1 | F12: 46086.76667 | G12: =$E$12*F12 -> 46086.76667
B13: 4 | C13: Cabo Elétrico com bitola de 25 mm² | D13: m | E13: 360 | F13: 33.14 | G13: =$E$13*F13 -> 11930.4
B14: 3 | C14: Curva 45º com flange em Aço ASTM-A36 - DN 400 mm - PN 10 - incluso proteção catódica | D14: Unid. | E14: 3 | F14: 3408.856667 | G14: =$E$14*F14 -> 10226.57
B15: 4 | C15: Curva 90º com flange em Aço ASTM-A36 - DN 400 mm - PN 10 - incluso proteção catódica | D15: Unid. | E15: 3 | F15: 3637.363333 | G15: =$E$15*F15 -> 10912.09
B16: 5 | C16: Válvulas de Retenção tipo Dupla Portinhola - DN 400 mm - PN 10 | D16: Unid. | E16: 1 | F16: 7097.41 | G16: =$E$16*F16 -> 7097.41
B17: 6 | C17: Redução com Flanges Concênticas em Aço ASTM-A36 - DN (500 mm x 400 mm) - PN5 - incluso proteção catódica - L = 0,60 m | D17: Unid. | E17: 1 | F17: 3393.046667 | G17: =$E$17*F17 -> 3393.046667
B18: 7 | C18: Tubo em Aço ASTM-A36 flangeado - DN 400 mm - PN 10 - incluso proteção catódica - L = 5.8 m | D18: Unid. | E18: 5 | F18: 5709.3 | G18: =$E$18*F18 -> 28546.5
B19: TOTAL | G19: =SUM(G8:G18) -> 298402.7833

Sheet Forn Betume EB8
C2: Ministério da Integração Nacional
C3: Companhia de Desenvolvimento dos Vales do São Francisco e do Parnaíba
B6: PLANILHA ANALÍTICA DE COTAÇÃO DOS VALORES EB 08 BETUME
B7: ITEM | C7: DISCRIMINAÇÃO | D7: Un. | E7: Quant. | F7: Codevasf
F9: Unit. | G9: Total
B10: FORNECIMENTO
B11: 1 | C11: Fornecimento de Bomba do tipo Anfíbia, com vazão de 1700 m³/h e altura manometrica de 8,5 m.c.a. (ponto de operação). Motores elétricos de 100 CV, 6 a 8 polos, 380 V, 60 HZ e rotação permitida de até 1185 rpm. | D11: Unid. | E11: 1 | F11: 180210 | G11: =$E$11*F11 -> 180210
B12: 2 | C12: CCM contendo 01 chave de partida Soft Starter microprocessada de 100 CV, 380 V, montadas em armário metálico, com proteção de curto através de disjuntor tripolar, proteção de falta de fase, proteção de sobre e subcorrente, proteção de sobre e subtensão, proteção contra surto, botão liga/desliga, sinalização indicando motor ligado, botão de emergência. contator de by-pass, chave seleção manual/automático, monitoração via IHM de: amperímetro, voltímetro, horímetro e cossimetro. | D12: Unid. | E12: 1 | F12: 46086.76667 | G12: =$E$12*F12 -> 46086.76667
B13: 4 | C13: Cabo Elétrico com bitola de 25 mm² | D13: m | E13: 360 | F13: 33.14 | G13: =$E$13*F13 -> 11930.4
B14: 3 | C14: Curva 45º com flange em Aço ASTM-A36- DN 400 mm - PN 10 - incluso proteção catódica | D14: Unid. | E14: 3 | F14: 3408.856667 | G14: =$E$14*F14 -> 10226.57
B15: 4 | C15: Curva 90º com flange em Aço ASTM-A36 - DN 400 mm - PN 10 - incluso proteção catódica | D15: Unid. | E15: 3 | F15: 3637.363333 | G15: =$E$15*F15 -> 10912.09
B16: 5 | C16: Válvulas de Retenção tipo Dupla Portinhola - DN 400 mm - PN 10 | D16: Unid. | E16: 1 | F16: 7097.41 | G16: =$E$16*F16 -> 7097.41
B17: 6 | C17: Redução com Flanges Concênticas em Aço ASTM-A36 - DN (500 mm x 400 mm) - PN10 - incluso proteção catódica - L = 0,60 m | D17: Unid. | E17: 1 | F17: 3393.046667 | G17: =$E$17*F17 -> 3393.046667
B18: 7 | C18: Tubo em Aço ASTM-A36 flangeado - DN 400 mm - PN 10 - incluso proteção catódica - L = 5.8 m | D18: Unid. | E18: 5 | F18: 5709.3 | G18: =$E$18*F18 -> 28546.5
B19: TOTAL | G19: =SUM(G8:G18) -> 298402.7833
B21: OBS.: Incluso todos os impostos (taxas, BDI's e emolumentos...)
